Cogmind - Beta 16 @@@ ROGUE MODE // 2025.10.25 @ 07:15:37 Player: AussieBBQ Result: Destroyed by as-68889 with Assembled Rifle Performance ------------- Evolutions (0) 0 Regions Visited (4) 800 Robots Destroyed (18) 90 Value Destroyed (667) 667 Prototype IDs (25) 500 Alien Tech Used (0) 0 Bonus (300) 300 TOTAL SCORE: 2357 Bonus ------- Aligned with FarCom 300 Cogmind --------- Core Integrity 0/250 Matter 144/300 Energy 152/160 System Corruption 0% Temperature Cool (3) Movement Walking (90) Location -9/Mines Parts ------- > --- POWER (1) -------- Light Nuclear Core > --- PROPULSION (2) --- Potential Leg Potential Leg > --- UTILITY (2) ------ High-capacity Storage Unit Light Armor Plating > --- WEAPON (2) ------- Particle Gun Grenade Launcher > --- INVENTORY (20) --- Aluminum Leg Aluminum Leg Aluminum Leg Aluminum Leg Aluminum Leg Aluminum Leg Heat Sink Improved Heat Sink High-capacity Battery (250) Small Laser Small Laser Light Assault Rifle Grenade Launcher Peak State ------------ > --- POWER ------------ Light Nuclear Core > --- PROPULSION ------- Potential Leg Potential Leg > --- UTILITY ---------- High-capacity Storage Unit Light Armor Plating > --- WEAPON ----------- Particle Gun Grenade Launcher > --- INVENTORY -------- Aluminum Leg Aluminum Leg Aluminum Leg Aluminum Leg Aluminum Leg Aluminum Leg Heat Sink Improved Heat Sink High-capacity Battery Small Laser Small Laser Light Assault Rifle Grenade Launcher [Rating: 29] Favorites ----------- Power Ion Engine Engine Ion Engine Power Core Light Nuclear Core Propulsion Aluminum Leg Leg Aluminum Leg Utility Light Armor Plating Device Improved Heat Sink Storage Medium Storage Unit Protection Light Armor Plating Weapon Light Assault Rifle Energy Gun Small Laser Ballistic Gun Light Assault Rifle Launcher Grenade Launcher Build | -11 -10 -10 -10 -9 ------- Run | Yrd Mat Min Exi Min Slots Evolved . | . . . . . Power . | . . . . . Propulsion . | . . . . . Utility . | . . . . . Weapon . | . . . . . Parts Attached 25 | . 4 15 3 3 Power 4 | . 1 2 . 1 Engine 3 | . 1 2 . . Core 1 | . . . . 1 Reactor . | . . . . . Propulsion 7 | . . 5 2 . Treads . | . . . . . Leg 7 | . . 5 2 . Wheel . | . . . . . Hover . | . . . . . Flight . | . . . . . Utility 6 | . 2 2 1 1 Device 2 | . . 2 . . Storage 2 | . 1 . 1 . Processor . | . . . . . Hackware . | . . . . . Protection 2 | . 1 . . 1 Artifact . | . . . . . Weapon 8 | . 1 6 . 1 Energy Gun 4 | . . 3 . 1 Energy Cannon . | . . . . . Ballistic Gun 2 | . 1 1 . . Ballistic Cannon . | . . . . . Launcher 2 | . . 2 . . Special Weapon . | . . . . . Impact Weapon . | . . . . . Slashing Weapon . | . . . . . Piercing Weapon . | . . . . . Special Melee Weapon . | . . . . . Unidentified Prototypes . | . . . . . Parts Lost 6 | . . 2 . 4 Power 2 | . . . . 2 Propulsion . | . . . . . Utility 1 | . . . . 1 Weapon 3 | . . 2 . 1 Highest Loss Streak 3 | . . 1 . 3 To Critical Strikes . | . . . . . Average Backups 9 | . 7 9 10 12 Power . | . 1 1 1 . Propulsion 2 | . 2 2 3 4 Utility 2 | . 1 2 3 3 Weapon 2 | . 2 3 3 3 Tool/Special . | . . . . . Unused Backups 21 | . 5 6 1 9 Power 3 | . 2 1 . . Propulsion 10 | . . 4 1 5 Utility 6 | . 3 . . 3 Weapon 2 | . . 1 . 1 Tool/Special . | . . . . . Average Slot Usage (%) 98 | . 94 99 100 98 Engine 13 | . 14 14 14 3 Leg 28 | . 28 28 28 28 Device 1 | . . 4 . . Storage 14 | . 14 14 14 14 Protection 10 | . 9 9 14 12 Energy Gun 15 | . 24 10 14 10 Ballistic Gun 10 | . 3 13 14 10 Launcher 1 | . . 3 . 7 Peak Build Rating 29 | . 7 10 26 29 Average Rating 11 | . 6 8 16 27 On Entrance 10 | 6 6 7 8 26 Avg Prop Armor Cover (%) . | . . . . . Naked Turns . | . . . . . Heaviest Build 54 | 11 21 22 50 54 Greatest Support 60 | 20 20 20 60 60 Greatest Overweight (x) 1 | . 1 1 . . Average Overweight (x) . | . . . . . Largest Inventory Capacity 20 | . 10 10 20 20 Average Capacity 10 | . 8 10 11 20 Most Carried 14 | . 10 10 10 14 Average Carried 9 | . 7 9 10 12 Final Capacity 20 | 8 10 10 20 20 Final Carried 13 | 6 10 10 10 13 Class Distribution -------------------- 52% | Scavenger-Mutant 47% | Mutant Dominant Class ---------------- Mutant | -10/Materials Scavenger-Mutant | -10/Mines Scavenger-Mutant | -10/Exiles Mutant | -9/Mines Resources | -11 -10 -10 -10 -9 ----------- Run | Yrd Mat Min Exi Min Matter Collected 592 | 182 38 304 . 68 Remotely . | . . . . . Salvage Created 710 | . 171 388 . 151 Parts 33 | . 3 23 . 7 Haulers Intercepted . | . . . . . Recyclers Shooed 1 | . . 1 . . Parts Field Recycled . | . . . . . Retrieved Matter . | . . . . . Parts Self-Destructed . | . . . . . Prevented . | . . . . . Parts Restored . | . . . . . Kills | -11 -10 -10 -10 -9 ------- Run | Yrd Mat Min Exi Min Combat Hostiles Destroyed 31 | . 3 10 . 18 Guns 9 | . 3 6 . . AOE 22 | . . 4 . 18 Classes Destroyed 4 | . 2 1 . 1 Recycler 1 | . . 1 . . Operator 1 | . 1 . . . Grunt 16 | . 3 10 . 3 Assembled 15 | . . . . 15 Best Kill Streak 15 | . 2 3 . 15 Combat Bots Only 15 | . 2 3 . 15 Max Kills in Single Turn 5 | . 1 2 . 5 Gunslinging . | . . . . . Exploded 5 | . . 2 . 5 Melee . | . . . . . Uniques/NPCs Destroyed . | . . . . . Combat | -11 -10 -10 -10 -9 -------- Run | Yrd Mat Min Exi Min Hostile Shots Fired 107 | . 14 37 . 56 Missed 26 | . 5 8 . 13 Hits 81 | . 9 29 . 43 Melee 3 | . . . . 3 Projectile 78 | . 9 29 . 40 Critical Strikes 4 | . 1 2 . 1 Damage Taken 1218 | . 114 425 . 679 Core 256 | . 39 96 . 121 Absorbed by Shields . | . . . . . Core Remaining (%) 100 | 100 . . . . Volleys Fired 49 | . 14 26 . 9 Largest 2 | . 2 2 . 2 Hottest 90 | . 90 70 . 60 Shots Fired 93 | . 28 47 . 18 Gun 75 | . 28 39 . 8 Cannon . | . . . . . Launcher 18 | . . 8 . 10 Special . | . . . . . Kinetic 30 | . . 26 . 4 Thermal 45 | . 28 13 . 4 Explosive 18 | . . 8 . 10 Electromagnetic . | . . . . . Robot Hit Streak 16 | . 11 16 . 13 Robot Miss Streak 3 | . 2 3 . 1 Penetration Max . | . . . . . Secondary Targets 2 | . . 2 . . Max Gunslinging Chain 1 | . . 1 . . Shots Hit Robots 62 | . 23 30 . 9 Core Hits 85 | . 9 33 . 43 Critical Kills . | . . . . . Critical Parts Destroyed . | . . . . . Critical Strikes 3 | . 3 . . . Burn 3 | . 3 . . . Melee Attacks . | . . . . . Impact . | . . . . . Slashing . | . . . . . Piercing . | . . . . . Sneak Attacks . | . . . . . Combat Hostiles . | . . . . . Follow-up Attacks . | . . . . . Damage Inflicted 2255 | . 266 612 . 1377 Guns 598 | . 266 265 . 67 Cannons . | . . . . . Explosions 1635 | . . 325 . 1310 Melee . | . . . . . Ramming 22 | . . 22 . . Kinetic 172 | . . 138 . 34 Thermal 426 | . 266 127 . 33 Explosive 1635 | . . 325 . 1310 Electromagnetic . | . . . . . Impact . | . . . . . Slashing . | . . . . . Piercing . | . . . . . Highest Corruption . | . . . . . Average Corruption . | . . . . . Corruption Purged . | . . . . . Corruption Blocked . | . . . . . Overload Shots . | . . . . . Overflow Damage 12 | . . . . 12 Projectiles . | . . . . . Explosions 12 | . . . . 12 Melee . | . . . . . Knockbacks . | . . . . . Impact . | . . . . . Kinetic . | . . . . . Secondary . | . . . . . Self-Inflicted Damage 79 | . . 39 . 40 Shots 3 | . . 1 . 2 Rammed . | . . . . . Targets Rammed 4 | . . 4 . . Kicked 4 | . . 4 . . Crushed . | . . . . . Highest Temperature 410 | . 410 181 . 161 Average Temperature 106 | . 154 65 . 70 Received Heat Transfer 510 | . 84 255 . 171 Effects 1 | . 1 . . . Shutdowns 1 | . 1 . . . Siege Activations . | . . . . . Martial Activations . | . . . . . Shielding Activations . | . . . . . Robots Disrupted . | . . . . . Combat Hostiles . | . . . . . Robots Corrupted . | . . . . . Combat Hostiles . | . . . . . Parts Fried . | . . . . . Impact Corruptions . | . . . . . Robots Melted . | . . . . . Combat Hostiles . | . . . . . Parts Melted 4 | . 3 1 . . Heat Transferred 1314 | . 929 310 . 75 Parts Sabotaged . | . . . . . Parts Stolen . | . . . . . Parts Stripped . | . . . . . Power Chain Reactions . | . . . . . Alert | -11 -10 -10 -10 -9 ------- Run | Yrd Mat Min Exi Min Maximum Alert Level . | . . . . . Low Security (%) 100 | . 100 100 . 100 Level 1 . | . . . . . Level 2 . | . . . . . Level 3 . | . . . . . Level 4 . | . . . . . Level 5 . | . . . . . High Security . | . . . . . Max Security . | . . . . . Peak Influence 173 | . 40 173 . 87 Initial . | . . . . . Average 61 | . 13 97 . 54 Influence Increases 539 | . 110 313 . 116 Destroy 0b10 Robot/C 320 | . 60 200 . 60 Destroy 0b10 Robot/NC 10 | . 5 5 . . Destroy Leader 80 | . 20 50 . 10 Successful Hack 10 | . 10 . . . Disable Machine 15 | . . . . 15 Destroy Structure 74 | . . 43 . 31 Partial Spotted 15 | . 15 . . . Lose Combat Pursuer 15 | . . 15 . . Influence Decreases 493 | . 110 234 79 70 Entered New Map 79 | . . . 79 . Time Decay 374 | . 110 214 . 50 Lost Part 40 | . . 20 . 20 Squads Dispatched 1 | . 1 . . . Investigation . | . . . . . Extermination . | . . . . . Reinforcement 1 | . 1 . . . Assault . | . . . . . Garrison . | . . . . . Intercept . | . . . . . Searches Triggered . | . . . . . Construction Impeded . | . . . . . Haulers Reinforced . | . . . . . Active Scanning Responses . | . . . . . Cargo Convoy Interrupts . | . . . . . Stealth | -11 -10 -10 -10 -9 --------- Run | Yrd Mat Min Exi Min Distress Signals 1 | . . 1 . . Communications Jammed . | . . . . . Distress Signals . | . . . . . Times Spotted 37 | . 5 10 . 22 Peak Tracking Total 19 | . 2 4 . 19 Tactical Retreats 1 | . . 1 . . Traps | -11 -10 -10 -10 -9 ------- Run | Yrd Mat Min Exi Min Traps Triggered . | . . . . . Indirectly . | . . . . . Trap Hack Attempts . | . . . . . Triggered . | . . . . . Disarmed . | . . . . . Reprogrammed . | . . . . . Reused . | . . . . . Traps Extracted . | . . . . . Installed . | . . . . . Triggered . | . . . . . Machines | -11 -10 -10 -10 -9 ---------- Run | Yrd Mat Min Exi Min Machines Disabled 1 | . . . . 1 Max in Single Turn 1 | . . . . 1 Machines Repaired . | . . . . . Machines Dismantled . | . . . . . Machines Sabotaged . | . . . . . Overloaded Fab Kills . | . . . . . Hacking | -11 -10 -10 -10 -9 --------- Run | Yrd Mat Min Exi Min Machines Accessed 5 | . 3 . 2 . Terminals 3 | . 3 . . . Fabricators . | . . . . . Repair Stations . | . . . . . Recycling Units . | . . . . . Scanalyzers . | . . . . . Garrison Access . | . . . . . Total Hacks 12 | . 10 . 2 . Successful 8 | . 6 . 2 . Failed 4 | . 4 . . . Catastrophic 1 | . 1 . . . Database Lockouts . | . . . . . Manual 9 | . 8 . 1 . Terminals 10 | . 10 . . . Fabricators . | . . . . . Repair Stations . | . . . . . Recycling Units . | . . . . . Scanalyzers . | . . . . . Garrison Access . | . . . . . Terminal Hacks 6 | . 4 . 2 . Record 1 | . . . 1 . Robot Analysis 2 | . 2 . . . Prototype ID Bank 1 | . 1 . . . Hauler Manifests 1 | . 1 . . . Proto ID Catalog 1 | . . . 1 . Fabricator Hacks . | . . . . . Repair Station Hacks . | . . . . . Recycling Unit Hacks . | . . . . . Scanalyzer . | . . . . . Garrison Access Hacks . | . . . . . Unauthorized Hacks 2 | . 2 . . . Terminals 2 | . 2 . . . Botnet 2 | . 2 . . . Fabricators . | . . . . . Repair Stations . | . . . . . Recycling Units . | . . . . . Scanalyzers . | . . . . . Garrison Access . | . . . . . Data Cores Recovered . | . . . . . Used . | . . . . . Hacking Detections 3 | . 3 . . . Full Trace Events . | . . . . . Feedback Events . | . . . . . Feedback Blocked . | . . . . . Robot Schematics Acquired . | . . . . . Robots Built . | . . . . . Authchips . | . . . . . Time . | . . . . . Total Robot Build Rating . | . . . . . Part Schematics Acquired . | . . . . . Parts Built . | . . . . . Authchips . | . . . . . Time . | . . . . . Total Part Build Rating . | . . . . . Part Studies Acquired . | . . . . . Parts Repaired . | . . . . . Time . | . . . . . Parts Recycled . | . . . . . Recycled Matter . | . . . . . Retrieved Matter . | . . . . . Retrieved Components . | . . . . . Parts Scanalyzed . | . . . . . Part Schematics Acquired . | . . . . . Parts Damaged . | . . . . . Bothacking | -11 -10 -10 -10 -9 ------------ Run | Yrd Mat Min Exi Min Used RIF Installer . | . . . . . Robots Hacked . | . . . . . Non-combat . | . . . . . Combat . | . . . . . Robot Hacks Applied . | . . . . . Relay Couplers Released . | . . . . . Fabnet Peak Effective % . | . . . . . Robots Rewired . | . . . . . Allies Hacked . | . . . . . Hacks Repelled . | . . . . . Allies | -11 -10 -10 -10 -9 -------- Run | Yrd Mat Min Exi Min Total Allies . | . . . . . Largest Group . | . . . . . Highest-Rated Group . | . . . . . Highest-Rated Ally . | . . . . . Total Orders . | . . . . . Ally Attacks . | . . . . . Total Damage . | . . . . . Kills . | . . . . . Allies Corrupted . | . . . . . Allies Melted . | . . . . . Intel | -11 -10 -10 -10 -9 ------- Run | Yrd Mat Min Exi Min Active Infowar (turns) . | . . . . . Robot Analysis Total 2 | . 2 . . . Derelict Logs Recovered 2 | . . 1 . 1 Drone Launches . | . . . . . Drone Recoveries . | . . . . . Exploration | -11 -10 -10 -10 -9 ------------- Run | Yrd Mat Min Exi Min Turns Passed 1106 | . 313 442 249 102 Spaces Moved 751 | 1 197 257 234 62 Core . | . . . . . Treads . | . . . . . Legs 751 | 1 197 257 234 62 Wheels . | . . . . . Hover . | . . . . . Flight . | . . . . . Fastest Speed 90 | 120 120 120 90 90 Average Speed 115 | 120 121 127 104 90 Slowest Speed 190 | 120 190 190 120 90 Overloaded Moves . | . . . . . Propulsion Burnouts . | . . . . . Robots Hopped . | . . . . . Potential Cave-ins . | . . . . . Cave-ins Triggered . | . . . . . Exploration Rate (%) 33 | 2 28 54 59 26 Regions Visited 4 Branch Regions 3 Pre-discovered Areas 2 | . . . 1 1 Known Exits Taken . | . . . . . Unknown Exits Taken 4 | 1 1 1 1 . Scrap Searched 2 | . . 2 . . Spaces Dug 33 | . . . . 33 Terrain Destroyed 95 | . . 51 . 44 Melee . | . . . . . Projectile . | . . . . . AOE 95 | . . 51 . 44 Terrain Rammed . | . . . . . Walls Destroyed . | . . . . . Machines Disabled . | . . . . . Actions | -11 -10 -10 -10 -9 --------- Run | Yrd Mat Min Exi Min Total 908 | . 247 335 239 87 Wait 24 | . 15 9 . . Move 747 | . 196 256 233 62 Hop . | . . . . . Pick Up 18 | . 8 4 . 6 Fast Attach 7 | . 3 3 . 1 Attach 5 | . . 2 . 3 Detach 4 | . 2 2 . . Swap 26 | . 1 16 3 6 Drop 24 | . 8 13 3 . Fire 49 | . 14 26 . 9 Melee . | . . . . . Ram . | . . . . . Kick 4 | . . 4 . . Crush . | . . . . . Escape Stasis . | . . . . . Rewire . | . . . . . Trap . | . . . . . Miscellaneous . | . . . . . Route ------- -11/Scrapyard -10/Materials -10/Mines (discovered 2 exits: [*Mat] / *Exi) -10/Exiles -9/Mines History --------- Turn | Location | Event 1 | -11/Scrapyard | Discovered new exit (range 0) 1 | -11/Scrapyard | Entered Materials 251 | -10/Materials | Discovered new exit (range 10) 309 | -10/Materials | Build established: Mutant 314 | -10/Materials | Entered Mines 621 | -10/Mines | Build established: Scavenger-Mutant 643 | -10/Mines | Discovered new exit (range 6) 703 | -10/Mines | Core integrity fell below 50% 737 | -10/Mines | Learned 4 Materials zone layouts 750 | -10/Mines | Deemed a non-threat by the Exiles lab entrance 752 | -10/Mines | Discovered new exit (range 5) 756 | -10/Mines | Entered Exiles 784 | -10/Exiles | Met 8R-AWN 806 | -10/Exiles | Met EX-HEX 840 | -10/Exiles | Met EX-BIN 854 | -10/Exiles | Aligned with FarCom system 855 | -10/Exiles | Given EX-Vault access code 882 | -10/Exiles | Opened EX-Vault 892 | -10/Exiles | Found Potential Leg 895 | -10/Exiles | Found Potential Leg 914 | -10/Exiles | Warned to stay clear of 0b10 Research branches 940 | -10/Exiles | Met EX-DEC 944 | -10/Exiles | Learned location of Zion (-6) 995 | -10/Exiles | Discovered new exit (range 14) 1005 | -10/Exiles | Left Exiles lab with Potential Leg 1005 | -10/Exiles | Entered Mines 1051 | -9/Mines | Lost 3 parts (2p1w) 1084 | -9/Mines | Assembled infested the area 1087 | -9/Mines | Met a Derelict bent on vengeance 1087 | -9/Mines | Core integrity fell below 20% 1089 | -9/Mines | Assisted by a Guerilla fighting off Assembled 1107 | -9/Mines | Destroyed by as-68889 with Assembled Rifle Last Messages --------------- 01095_ as-91412 destroyed. 01095_ Destroyed Asb. Hover Unit. 01095_ as-57588 destroyed. 01095_ Destroyed Asb. Hover Unit. 01095_ as-93092 destroyed. 01095_ as-90079 destroyed. 01096_ as-81955 destroyed. 01098_ as-53399 destroyed. 01098_ as-42131 destroyed. 01098_ as-21179 destroyed. 01098_ Destroyed Asb. Hover Unit. 01098_ as-85105 destroyed. 01098_ as-25506 destroyed. 01101_ as-87673 destroyed. 01101_ Destroyed Asb. Hover Unit. 01101_ as-53012 destroyed. 01101_ as-00818 destroyed. 01101_ as-11615 destroyed. 01101_ as-73548 destroyed. 01103_ The unstable cave ceiling collapses. Map ----- +----------------------------------------------------+ | ?????????????????????????????????????### ###????? | | ???????????????????????????????????????# #??????? | | ??????????????????????????????????????## #?????? | | ?????????????????????????????????????## ##????# | | ?????????????????????????????????????# ##??# | | ??????????????????????????????######## ### | | ??????????????????????????# | | ?????????????????????????????########## | | ????????????????? #???????????????????# | | ??????????????? #??????????????????# ## | | ????????????? #?????????????????# ##? | | ????????????? #??###???????????# ##?? | | ?????????????# a ## #??????????## #??? | | ??????????????# ##?????????## #??? | | ??????????????# ##???????## ##### | | ?????????????? % #?####### | | ??????????????? ?# | | ???????????????? #?# ###### | | ????????????????? a #?# ##### ##????? | | ?????????????????? #??# #???## ##?????? | | ??????????????????? # #??# #????## ##??????? | | ????????????????????# ##?# #?????# #???????? | | ????????????????????? # ! ### #?????# #???????? | | ?????????????????????? % ## #?????# ???????? | | ???????????????????????# a ### ###?????###???????? | | ???????????????????????##@ ## #?????????????????? | | ????????????????????????## ##????????????????? | | ?????????????????????????# #????????????????? | | ?????????????????????????# #????????????????? | | ?????????????????????????# # ##????????????????? | | ?????????????????????????# ####?????????????????? | | ?????????????????????????# #????????????????????? | | ?????????????????????????# ????????????????????? | | ?????????????????????????####????????????????????? | | ?????????????????????????????????????????????????? | | ?????????????????????????????????????????????????? | | ?????????????????????????????????????????????????? | | ?????????????????????????????????????????????????? | | ?????????????????????????????????????????????????? | | ?????????????????????????????????????????????????? | | ?????????????????????????????????????????????????? | | ?????????????????????????????????????????????????? | | ?????????????????????????????????????????????????? | | ?????????????????????????????????????????????????? | | ?????????????????????????????????????????????????? | | ?????????????????????????????????????????????????? | | | | | | | | | +----------------------------------------------------+ Best States ------------- Heat Dissipation 39 Energy Generation 14 Energy Capacity 250 Matter Stores 300 Matter Capacity 300 Sight Range 16 Terrain Scan Density 10 Armor Coverage 150 Evasion (%) 57 Item Schematics ----------------- None Robot Schematics ------------------ None Fabricated ------------ Nothing Repaired ---------- Nothing Studied --------- None Alien Tech Used ----------------- None Achievements -------------- I Have A Map? Sprinter There's More Where That Came From Challenges ------------ None Game ------ Seed ShadeScatterScanner Manual? 0 Play Time 00:14:08 Cumulative 31.8 hours Start 2025.10.25 @ 07:02:44 End 2025.10.25 @ 07:15:37 Sessions 1 Manual Loads 0 Difficulty Rogue Special Mode None Game No. 49 Rogue 49 Adventurer 0 Explorer 0 Win Type - Total 1 Types 1/0/0/0/0/0/0/0/0/0 Lore% 33 Gallery% 35 Achievement% 21 Wizard Run 0 Options --------- Layout 1 ASCII 0 Keyboard 0 Movement Numpad Keybinds 0 Fullscreen 2 Font 24/Smallcaps Map View 50x35 Zoom Use 0% Tactical HUD 1 Map Filters NONE Filters NONE Steam 1 RUN: a194d272-75ed-4906-9f8c-486f19fffeb1